Cogmind - Beta 17 @@@ ROGUE MODE // 2026.06.26 @ 23:39:31 Player: Skysub Result: Destroyed by Y-54 Guardian with Flak Gun Performance ------------- Evolutions (0) 0 Regions Visited (3) 600 Robots Destroyed (23) 115 Value Destroyed (530) 530 Prototype IDs (7) 140 Alien Tech Used (0) 0 Bonus (5000) 5000 TOTAL SCORE: 6385 Bonus ------- Prayed to X0-1V1 5000 Cogmind --------- Core Integrity 0/250 Matter 258/300 Energy 150/150 System Corruption 2% Temperature Cool (12) Movement Treading (560) Ox4 Location -7/Recycling Parts ------- > --- POWER (1) -------- Micro Nuclear Core (fused) > --- PROPULSION (2) --- Spiked Treads (fused) Armored Wheel (fused) > --- UTILITY (2) ------ Huge Storage Unit Self-contained Transmogrifier > --- WEAPON (2) ------- Mini Assault Cannon (fused) Makeshift Spear (fused) > --- INVENTORY (25) --- Protomatter-106 Cooled Ion Engine Spiked Treads Spiked Treads Improved Aluminum Leg Armored Wheel Subdweller Monowheel Advanced Terrain Scan Processor Recoil Stabilizer Medium Armor Plating Makeshift Light Armor Plating Scrap Shield Shield Generator Shield Generator X0-1V1's Piety Tracker Improved Medium Laser EM Pulse Cannon Advanced Beam Cannon Heavy Assault Rifle Battle Rifle Barrage Gun Gauss Rifle Subdweller Shrapnel Launcher Flail Peak State ------------ > --- POWER ------------ Micro Nuclear Core > --- PROPULSION ------- Armored Wheel Armored Wheel > --- UTILITY ---------- Huge Storage Unit Self-contained Transmogrifier > --- WEAPON ----------- Advanced Assault Cannon Mini Assault Cannon > --- INVENTORY -------- Protomatter Cooled Ion Engine Spiked Treads Spiked Treads Improved Aluminum Leg Armored Wheel Subdweller Monowheel Advanced Terrain Scan Processor Recoil Stabilizer Medium Armor Plating Makeshift Light Armor Plating Scrap Shield Shield Generator Shield Generator X0-1V1's Piety Tracker Improved Medium Laser EM Pulse Cannon Advanced Beam Cannon Heavy Assault Rifle Battle Rifle Barrage Gun Gauss Rifle Subdweller Shrapnel Launcher Flail [Rating: 34] Favorites ----------- Power Cooled Ion Engine Engine Cooled Ion Engine Power Core Micro Nuclear Core Propulsion Compact Wheel Treads Light Treads Wheel Compact Wheel Hover Unit Improved Hover Unit Utility Huge Storage Unit Device Self-contained Transmogrifier Storage Huge Storage Unit Weapon Light Assault Rifle Ballistic Gun Light Assault Rifle Ballistic Cannon Light Cannon Launcher Missile Launcher Impact Weapon Heavy Mace Piercing Weapon Makeshift Spear Build | -11 -10 -10 -7 ------- Run | Yrd Mat Sub Rec Slots Evolved . | . . . . Power . | . . . . Propulsion . | . . . . Utility . | . . . . Weapon . | . . . . Parts Attached 21 | 6 5 10 . Power 1 | 1 . . . Engine 1 | 1 . . . Core . | . . . . Reactor . | . . . . Propulsion 7 | 2 1 4 . Treads 1 | . 1 . . Leg . | . . . . Wheel 6 | 2 . 4 . Hover . | . . . . Flight . | . . . . Utility 6 | 1 3 2 . Device 2 | . 1 1 . Storage 4 | 1 2 1 . Processor . | . . . . Hackware . | . . . . Protection . | . . . . Artifact . | . . . . Weapon 7 | 2 1 4 . Energy Gun . | . . . . Energy Cannon . | . . . . Ballistic Gun 5 | 2 1 2 . Ballistic Cannon 1 | . . 1 . Launcher . | . . . . Special Weapon . | . . . . Impact Weapon 1 | . . 1 . Slashing Weapon . | . . . . Piercing Weapon . | . . . . Special Melee Weapon . | . . . . Unidentified Prototypes 1 | . . 1 . Parts Lost 3 | . 2 1 . Power 1 | . 1 . . Propulsion 2 | . 1 1 . Utility . | . . . . Weapon . | . . . . Highest Loss Streak 1 | . 1 1 . To Critical Strikes . | . . . . Average Backups 15 | 1 7 18 22 Power . | . . . 1 Propulsion 4 | 1 2 4 5 Utility 5 | . 1 6 7 Weapon 5 | . 2 7 8 Tool/Special . | . . . . Unused Backups 73 | . 1 49 23 Power 8 | . . 7 1 Propulsion 14 | . 1 8 5 Utility 18 | . . 10 8 Weapon 33 | . . 24 9 Tool/Special . | . . . . Average Slot Usage (%) 94 | . 87 96 100 Engine 10 | . 9 11 3 Treads 5 | . 12 2 3 Wheel 22 | . 15 25 24 Device 11 | . 6 14 14 Storage 14 | . 14 14 14 Ballistic Gun 15 | . 28 11 . Ballistic Cannon 9 | . . 12 21 Launcher 2 | . . 3 . Peak Build Rating 34 | 6 8 32 34 Average Rating 18 | 4 6 22 33 On Entrance 11 | . 6 8 32 Avg Prop Armor Cover (%) 13 | . 12 15 20 Naked Turns . | . . . . Heaviest Build 97 | 11 27 97 96 Greatest Support 32 | 26 26 32 24 Greatest Overweight (x) 8 | . 1 8 7 Average Overweight (x) 1 | . . 2 3 Largest Inventory Capacity 25 | 8 15 25 25 Average Capacity 20 | 6 12 23 25 Most Carried 25 | 3 14 25 25 Average Carried 16 | 1 7 20 24 Final Capacity 25 | 8 15 25 25 Final Carried 25 | 3 14 23 25 Transmogrified Parts 11 | . . 8 3 Integrity Recovered 132 | . . 105 27 Class Distribution -------------------- 100% | Mutant Dominant Class ---------------- Mutant | -10/Materials Mutant | -10/Subcaves Mutant | -7/Recycling Resources | -11 -10 -10 -7 ----------- Run | Yrd Mat Sub Rec Matter Collected 1029 | 238 195 596 . Remotely . | . . . . Salvage Created 473 | 12 309 117 35 Parts 41 | 3 20 16 2 Haulers Intercepted 2 | . 2 . . Recyclers Shooed 1 | . 1 . . Parts Field Recycled . | . . . . Retrieved Matter . | . . . . Parts Self-Destructed 6 | . . 6 . Prevented . | . . . . Parts Restored . | . . . . Kills | -11 -10 -10 -7 ------- Run | Yrd Mat Sub Rec Combat Hostiles Destroyed 18 | . 7 10 1 Guns 7 | . 7 . . Cannons 6 | . . 5 1 AOE 5 | . . 5 . Classes Destroyed 7 | 1 3 2 1 Tunneler 1 | 1 . . . Hauler 2 | . 2 . . Turret 2 | . . 2 . Swarmer 9 | . 3 6 . Grunt 4 | . 4 . . Programmer 1 | . . . 1 Subdweller 4 | . . 4 . Best Kill Streak 5 | 1 4 5 1 Combat Bots Only 3 | . 3 3 1 Max Kills in Single Turn 2 | 1 1 2 1 Gunslinging . | . . . . Exploded 2 | . . 2 . Melee . | . . . . Uniques/NPCs Destroyed . | . . . . Combat | -11 -10 -10 -7 -------- Run | Yrd Mat Sub Rec Hostile Shots Fired 104 | . 36 44 24 Missed 36 | . 13 13 10 Hits 68 | . 23 31 14 Projectile 68 | . 23 31 14 Critical Strikes 1 | . 1 . . Damage Taken 853 | . 315 400 138 Core 254 | . 75 140 39 Absorbed by Shields . | . . . . Core Remaining (%) 100 | 100 . . . Volleys Fired 105 | 2 42 58 3 Largest 2 | 2 2 2 1 Hottest 76 | 40 40 76 40 Shots Fired 163 | 4 84 72 3 Gun 119 | 4 84 31 . Cannon 35 | . . 32 3 Launcher 9 | . . 9 . Special . | . . . . Kinetic 154 | 4 84 63 3 Thermal . | . . . . Explosive 9 | . . 9 . Electromagnetic . | . . . . Robot Hit Streak 11 | 3 11 9 7 Robot Miss Streak 3 | . 3 1 1 Penetration Max . | . . . . Secondary Targets . | . . . . Shots Hit Robots 82 | 3 53 24 2 Core Hits 37 | 2 19 15 1 Critical Kills . | . . . . Critical Parts Destroyed . | . . . . Critical Strikes 1 | . . 1 . Blast 1 | . . 1 . Melee Attacks 7 | . . 7 . Impact 7 | . . 7 . Slashing . | . . . . Piercing . | . . . . Sneak Attacks 1 | . . 1 . Combat Hostiles . | . . . . Follow-up Attacks . | . . . . Damage Inflicted 1596 | 38 548 942 68 Guns 605 | 38 548 19 . Cannons 408 | . . 340 68 Explosions 583 | . . 583 . Melee . | . . . . Ramming . | . . . . Kinetic 1013 | 38 548 359 68 Thermal . | . . . . Explosive 583 | . . 583 . Electromagnetic . | . . . . Impact . | . . . . Slashing . | . . . . Piercing . | . . . . Highest Corruption 2 | . 1 1 2 Average Corruption 1 | . 1 1 1 Corruption Purged . | . . . . Corruption Blocked . | . . . . Effects 12 | . . 11 1 Message Errors 1 | . . 1 . Matter Fused 5 | . . 5 . Heat Flow Errors 1 | . . 1 . Parts Fused 1 | . . . 1 Data Loss (minor) 2 | . . 2 . Misfires 1 | . . 1 . Alerts 1 | . . 1 . Overload Shots . | . . . . Overflow Damage 49 | . . 37 12 Projectiles 12 | . . . 12 Explosions 37 | . . 37 . Melee . | . . . . Knockbacks 1 | . . 1 . Impact . | . . . . Kinetic 1 | . . 1 . Secondary . | . . . . Self-Inflicted Damage 3 | . . 3 . Shots 1 | . . 1 . Rammed . | . . . . Targets Rammed . | . . . . Kicked . | . . . . Crushed . | . . . . Highest Temperature 199 | . 18 199 6 Average Temperature 22 | . 9 82 3 Received Heat Transfer 276 | . 138 126 12 Siege Activations . | . . . . Martial Activations . | . . . . Shielding Activations . | . . . . Robots Disrupted . | . . . . Combat Hostiles . | . . . . Robots Corrupted . | . . . . Combat Hostiles . | . . . . Parts Fried . | . . . . Impact Corruptions . | . . . . Robots Melted . | . . . . Combat Hostiles . | . . . . Parts Melted . | . . . . Heat Transferred . | . . . . Parts Sabotaged . | . . . . Parts Stolen . | . . . . Parts Stripped . | . . . . Power Chain Reactions . | . . . . Alert | -11 -10 -10 -7 ------- Run | Yrd Mat Sub Rec Maximum Alert Level . | . . . . Low Security (%) 100 | 100 100 . 100 Level 1 . | . . . . Level 2 . | . . . . Level 3 . | . . . . Level 4 . | . . . . Level 5 . | . . . . High Security . | . . . . Max Security . | . . . . Peak Influence 122 | 5 97 . 122 Initial 82 | . 3 . 82 Average 39 | . 28 . 85 Influence Increases 604 | 5 288 230 81 Destroy 0b10 Robot/C 320 | . 140 160 20 Destroy 0b10 Robot/NC 15 | 5 10 . . Destroy Leader 44 | . 34 10 . Successful Hack 29 | . 29 . . Select Force Hacks 90 | . 30 . 60 Destroy Structure 1 | . . . 1 Lose Combat Pursuer 105 | . 45 60 . Influence Decreases 541 | . 254 97 190 Entered New Map 111 | . 2 19 90 Time Decay 410 | . 242 68 100 Lost Part 20 | . 10 10 . Squads Dispatched 2 | . 2 . . Investigation 1 | . 1 . . Extermination . | . . . . Reinforcement 1 | . 1 . . Assault . | . . . . Garrison . | . . . . Intercept . | . . . . Searches Triggered . | . . . . Construction Impeded . | . . . . Haulers Reinforced . | . . . . Active Scanning Responses . | . . . . Cargo Convoy Interrupts . | . . . . Stealth | -11 -10 -10 -7 --------- Run | Yrd Mat Sub Rec Distress Signals 1 | . 1 . . Communications Jammed . | . . . . Distress Signals . | . . . . Times Spotted 33 | . 13 17 3 Peak Tracking Total 5 | . 3 5 2 Tactical Retreats 2 | . 1 1 . Traps | -11 -10 -10 -7 ------- Run | Yrd Mat Sub Rec Traps Triggered 3 | . 3 . . Indirectly . | . . . . Trap Hack Attempts . | . . . . Triggered . | . . . . Disarmed . | . . . . Reprogrammed . | . . . . Reused . | . . . . Traps Extracted . | . . . . Installed . | . . . . Triggered . | . . . . Machines | -11 -10 -10 -7 ---------- Run | Yrd Mat Sub Rec Machines Disabled 5 | . 1 4 . Max in Single Turn 2 | . 1 2 . Machines Repaired . | . . . . Machines Dismantled . | . . . . Machines Sabotaged . | . . . . Overloaded Fab Kills . | . . . . Hacking | -11 -10 -10 -7 --------- Run | Yrd Mat Sub Rec Machines Accessed 7 | . 5 . 2 Terminals 4 | . 4 . . Fabricators . | . . . . Repair Stations . | . . . . Recycling Units 3 | . 1 . 2 Scanalyzers . | . . . . Garrison Access . | . . . . Total Hacks 18 | . 10 . 8 Successful 11 | . 6 . 5 Failed 7 | . 4 . 3 Catastrophic 1 | . 1 . . Database Lockouts . | . . . . Manual 11 | . 9 . 2 Terminals 8 | . 8 . . Fabricators . | . . . . Repair Stations . | . . . . Recycling Units 10 | . 2 . 8 Scanalyzers . | . . . . Garrison Access . | . . . . Terminal Hacks 1 | . 1 . . Registered Components 1 | . 1 . . Fabricator Hacks . | . . . . Repair Station Hacks . | . . . . Recycling Unit Hacks 3 | . . . 3 Report Inventory 2 | . . . 2 Retrieve Components 1 | . . . 1 Scanalyzer . | . . . . Garrison Access Hacks . | . . . . Unauthorized Hacks 7 | . 5 . 2 Terminals 4 | . 4 . . Botnet 2 | . 2 . . Skim 2 | . 2 . . Fabricators . | . . . . Repair Stations . | . . . . Recycling Units 3 | . 1 . 2 Tunnel 3 | . 1 . 2 Scanalyzers . | . . . . Garrison Access . | . . . . Data Cores Recovered . | . . . . Used . | . . . . Hacking Detections 7 | . 5 . 2 Full Trace Events . | . . . . Feedback Events . | . . . . Feedback Blocked . | . . . . Robot Schematics Acquired . | . . . . Robots Built . | . . . . Authchips . | . . . . Time . | . . . . Total Robot Build Rating . | . . . . Part Schematics Acquired . | . . . . Parts Built . | . . . . Authchips . | . . . . Time . | . . . . Total Part Build Rating . | . . . . Part Studies Acquired . | . . . . Parts Repaired . | . . . . Time . | . . . . Parts Recycled . | . . . . Recycled Matter . | . . . . Retrieved Matter . | . . . . Retrieved Components 3 | . . . 3 Parts Scanalyzed . | . . . . Part Schematics Acquired . | . . . . Parts Damaged . | . . . . Bothacking | -11 -10 -10 -7 ------------ Run | Yrd Mat Sub Rec Used RIF Installer . | . . . . Robots Hacked . | . . . . Non-combat . | . . . . Combat . | . . . . Robot Hacks Applied . | . . . . Relay Couplers Released . | . . . . Fabnet Peak Effective % . | . . . . Robots Rewired . | . . . . Allies Hacked . | . . . . Hacks Repelled . | . . . . Allies | -11 -10 -10 -7 -------- Run | Yrd Mat Sub Rec Total Allies . | . . . . Largest Group . | . . . . Highest-Rated Group . | . . . . Highest-Rated Ally . | . . . . Total Orders . | . . . . Ally Attacks . | . . . . Total Damage . | . . . . Kills . | . . . . Allies Corrupted . | . . . . Allies Melted . | . . . . X0-1V1 Amusement Gains 34 | . 21 9 4 Good Acts 31 | . . 31 . Bad Acts 27 | . . 27 . Intel | -11 -10 -10 -7 ------- Run | Yrd Mat Sub Rec Active Infowar (turns) 591 | . 352 239 . Structural 591 | . 352 239 . Robot Analysis Total . | . . . . Derelict Logs Recovered 1 | . . 1 . Drone Launches . | . . . . Drone Recoveries . | . . . . Exploration | -11 -10 -10 -7 ------------- Run | Yrd Mat Sub Rec Turns Passed 2477 | 56 732 1476 213 Spaces Moved 1578 | 44 462 933 139 Core 2 | 2 . . . Treads 72 | . 72 . . Legs . | . . . . Wheels 1504 | 42 390 933 139 Hover . | . . . . Flight . | . . . . Fastest Speed 50 | 50 90 115 135 Average Speed 128 | 87 118 132 147 Slowest Speed 240 | 90 240 210 195 Overloaded Moves . | . . . . Propulsion Burnouts . | . . . . Robots Hopped . | . . . . Potential Cave-ins . | . . . . Cave-ins Triggered . | . . . . Exploration Rate (%) 42 | 5 85 44 37 Regions Visited 3 Branch Regions 2 Pre-discovered Areas 3 | . 1 . 2 Known Exits Taken . | . . . . Unknown Exits Taken 3 | 1 1 1 . Scrap Searched 6 | . . 6 . Spaces Dug 3 | . . 3 . Terrain Destroyed 54 | . . 53 1 Melee . | . . . . Projectile 5 | . . 4 1 AOE 49 | . . 49 . Terrain Rammed . | . . . . Walls Destroyed . | . . . . Machines Disabled . | . . . . Actions | -11 -10 -10 -7 --------- Run | Yrd Mat Sub Rec Total 1885 | 54 570 1117 144 Wait 59 | . 46 13 . Move 1575 | 43 461 932 139 Hop . | . . . . Pick Up 56 | 3 11 40 2 Fast Attach 10 | 6 4 . . Attach 3 | . 1 2 . Detach 2 | . 2 . . Swap 10 | . 1 9 . Drop 58 | . 2 56 . Fire 105 | 2 42 58 3 Melee 7 | . . 7 . Ram . | . . . . Kick . | . . . . Crush . | . . . . Escape Stasis . | . . . . Rewire . | . . . . Trap . | . . . . Miscellaneous . | . . . . Route ------- -11/Scrapyard -10/Materials (discovered 5 exits: [*Mat x3] / [*Min] / [*Sub]) -10/Subcaves (discovered 3 exits: *Mat x2 / *Rec) -7/Recycling History --------- Turn | Location | Event 22 | -11/Scrapyard | Discovered new exit (range 16) 57 | -11/Scrapyard | Entered Materials 160 | -10/Materials | Discovered new exit (range 13) 197 | -10/Materials | Discovered new exit (range 14) 318 | -10/Materials | Build established: Mutant 362 | -10/Materials | Discovered new exit (range 10) 652 | -10/Materials | Discovered new exit (range 4) 777 | -10/Materials | Discovered new exit (range 10) 786 | -10/Materials | Prayed at D.C.S.S. Altar Unit 789 | -10/Materials | Entered Subcaves 843 | -10/Subcaves | Identified exit to Materials 1225 | -10/Subcaves | Shifting Twisted Machinery released Sub. Machine Gun 1292 | -10/Subcaves | Discovered exit to Materials (range 9) 1352 | -10/Subcaves | Shifting Twisted Machinery released Mak. Light Armor Plating 1740 | -10/Subcaves | Forcibly received Sfc. Transmogifier from X0-1V1 1915 | -10/Subcaves | Core integrity fell below 50% 2113 | -10/Subcaves | Discovered new exit (range 15) 2118 | -10/Subcaves | Core integrity fell below 20% 2171 | -10/Subcaves | A swath of the cavern ceiling suddenly collapsed 2265 | -10/Subcaves | Entered Recycling 2478 | -7/Recycling | Destroyed by Y-54 Guardian with Flak Gun Last Messages --------------- Matter reserves: 0 Inventory: Adv. Assault Cannon (67%) Imp. Field Recycling Unit (72%) Imp. Field Recycling Unit (45%) 02316_ Connecting with Recycling Unit... >>Force(Tunnel) DISCOVERED[-6/Extension] 02352_ System corrupted: Arm. Wheel fused. 02369_ Sfc. Transmogrifier converts Adv. Assault Cannon into Mak. Spear. 02415_ Sfc. Transmogrifier converts Arm. Wheel into Spk. Treads. 02457_ P-60 Hacker springs to life. 02458_ P-60 Hacker destroyed. 02464_ R-06 Scavenger collects Shock Rifle. 02468_ R-06 Scavenger collects Mic. Nuclear Core. 02472_ T-07 Excavator destroyed. 02473_ P-60 Hacker springs to life. 02477_ Destroyed Gravmag System. 02478_ A-02 Transporter destroyed. 02478_ X0-1V1 giggles madly! Map ----- +----------------------------------------------------+ | #?????? ??????????????????????????????????????? | | ###??? ???????????????????????????????????????? | | ""#??? ???????????????????????????????????????? | | Y"#??? ????????????????????????????????????????? | | ""#??? ?????????????????????????????????????????? | | ###??? ##+######?? ????????????????????????????? | | ###### # ? #???????????????????????????? | | + ???? #???????????????????????????? | | #?????????# #???????????????????????????? | | #?????????+ #???????????????????????????? | | #?????????# #???????????????????????????? | | #?????????# #???????????????????????????? | | #?????????# #???????????????????????????? | | #?????????# ##??????????? ??????????????? | | #?????????# ???????????? ??????????????? | | #?????????# #???????????? ??????????????? | | ########### #???????????? #?????????????? | | ## # #???????????? #?????????????? | | ## # #???????????? #?????????????? | | + + #???????????? #?????????????? | | ## # #?###########+########??????? | | ## # #?#!! Y ai #??????? | | ## # #?# u ! #??????? | | + # ### !is kl] % i/ #??????? | | ####### # ==#a ]g = Y = #??????? | | #?????# # ==#p@ !i ! #??????? | | #?????########## ==# !*%! g #??????? | | #??????#???????# ##; % Y%%r %#??????? | | #?###### ####### ### t !!%#??????? | | #?# # #?##########u########???????? | | #?# # ########## ##### #??????? | | #?# # ???? | | + + "?? | | # # ??? | | # ############## ########## ??? | | + #????????????#######????????????? | | # #???????????????????????????????? | | # #???????????????????????????????? | | + #???????????????????????????????? | | ##### #???????????????????????????????? | | ????# #???????????????????????????????? | | ????##############???????????????????????????????? | | ?????????????????????????????????????????????????? | | ?????????????????????????????????????????????????? | | ?????????????????????????????????????????????????? | | ?????????????????????????????????????????????????? | | | | | | | | | +----------------------------------------------------+ Best States ------------- Heat Dissipation 25 Energy Generation 15 Energy Capacity 280 Matter Stores 300 Matter Capacity 300 Sight Range 16 Terrain Scan Density 10 Evasion (%) 42 Recoil Reduction 1 Item Schematics ----------------- None Robot Schematics ------------------ None Fabricated ------------ Nothing Repaired ---------- Nothing Studied --------- None Alien Tech Used ----------------- None Achievements -------------- None Challenges ------------ None Game ------ Seed BiometalDisposableCore Manual? 0 Play Time 00:29:41 Cumulative 321.8 hours Start 2026.06.26 @ 23:00:49 End 2026.06.26 @ 23:39:31 Sessions 1 Manual Loads 0 Difficulty Rogue Special Mode None Game No. 388 Rogue 388 Adventurer 0 Explorer 0 Win Type - Total 21 Types 13/0/3/1/1/0/1/1/0/1 Lore% 78 Gallery% 74 Achievement% 64 Wizard Run 0 Options --------- Layout 1 ASCII 0 Keyboard 1 Movement Numpad Keybinds 0 Fullscreen 2 Font 32/SmallcapsGlow Map View 77x35 Zoom Use 0% Tactical HUD 1 Map Filters NONE Filters NONE Steam 1 RUN: 0d97f4ac-d5de-4ce6-832a-e6cd7e41be5c